[Event "12th Maria Albulet Memorial 2019"]
[Site "Braila"]
[Date "2019.10.08"]
[Round "8.7"]
[White "Verbin, Valentina"]
[Black "Pitigoi, Sabina-Andreea"]
[Result "1-0"]
[ECO "C01"]
[WhiteElo "2076"]
[BlackElo "1490"]
[Annotator "NA"]
[PlyCount "175"]
[EventDate "2019.10.02"]
[EventType "swiss"]
[EventCountry "ROU"]
[SourceTitle "playchess.com"]
[Source "ChessBase"]
[SourceQuality "1"]
[TimeControl "40/5400+30:900+30"]

{[%evp 8,154,12,7,32,32,37,34,42,12,32,0,0,7,32767,32767,32767,32767,32767,32767,32767,-18,32767,-5,32767,32767,32767,3,0,0,0,0,0,0,0,0,0,4,6,6,6,0,32767,32767,32767,38,38,35,32,9,18,0,0,6,0,0,0,0,8,4,9,5,5,3,9,1,6,7,8,9,0,5,6,0,32767,32767,32767,32767,5,2,0,0,4,0,0,3,0,2,8,0,2,32767,32767,32767,32767,1,32767,32767,32767,32767,32767,32767,32767,32767,32767,32767,0,32767,32767,32767,32767,32767,32767,32767,32767,32767,32767,0,32767,32767,32767,32767,32767,32767,32767,32767,32767,32767,32767,32767,32767,121,133,32767,32767,32767,32767,32767,32767,32767,32767,32767,32767,8993,4133,29956,6119,4134,12816]} 1. e4 {[%emt 0:00:00]} e6 {[%emt 0:00:00]} 2. d4 {[%emt 0:00:00]} d5 {[%emt 0:00:00]} 3. exd5 {[%emt 0:00:00]} exd5 {[%emt 0:00:00]} 4. Nf3 {[%emt 0:00:00]} Nf6 {[%emt 0:00:23]} 5. Bd3 {[%emt 0:00:00]} c5 {[%emt 0:01:01]} 6. O-O {[%emt 0:00:04] C01: French: Exchange Variation} cxd4 {[%emt 0:02:39]} (6... c4 7. Re1+ Be7 8. Be2 O-O 9. b3 cxb3 10. axb3 Nc6 11. c3 Re8 12. Nbd2 Bd6 13. Bd3 Bg4 14. Rxe8+ Qxe8 {0-1 (52) Fontaine,R (2563)-Carlsen,M (2834) chess.com INT 2018}) 7. Nxd4 {[%emt 0:00:32]} Be7 {[%emt 0:00:56]} 8. Bf4 {[%emt 0:05:10]} a6 $146 {[%emt 0:01:28]} ({Predecessor:} 8... O-O 9. c4 dxc4 10. Bxc4 Be6 11. Bxe6 fxe6 12. Nxe6 Qxd1 13. Rxd1 {1-0 (52) Dsouza,S (1143)-Cavaille,C (1009) FICGS email 2011}) 9. a4 {[%emt 0:01:25]} O-O {[%emt 0:01:41]} 10. Nd2 {[%emt 0:03:32]} Nbd7 {[%emt 0:07:22]} 11. Re1 {[%emt 0:04:55]} Re8 {[%emt 0:06:56]} 12. Qf3 {[%emt 0:01:16]} Nc5 {[%emt 0:03:14]} 13. Bf5 {[%emt 0:00:19]} Bd7 {[%emt 0:06:23]} 14. Qh3 {[%emt 0:06:36]} g6 {[%emt 0:05:19]} 15. Bxd7 {[%emt 0:00:30]} Qxd7 {[%emt 0:00:17]} 16. Qxd7 {[%emt 0:01:39]} Nfxd7 {[%emt 0:00:11]} 17. N2f3 {[%emt 0:13:44]} Bf6 {[%emt 0:05:08]} 18. Red1 {[%emt 0:02:04]} Ne6 {[%emt 0:09:44]} 19. Nxe6 {[%emt 0:07:36]} fxe6 {[%emt 0:00:24]} 20. c4 {[%emt 0:03:33]} Nb6 {[%emt 0:03:56]} 21. cxd5 {[%emt 0:00:34]} Nxd5 {[%emt 0:00:23]} 22. Be5 {[%emt 0:00:05]} Bxe5 {[%emt 0:02:06]} 23. Nxe5 {[%emt 0:00:02]} Rac8 {[%emt 0:01:14]} 24. Rac1 {[%emt 0:00:24]} Nf4 {[%emt 0:02:32]} 25. Kf1 {[%emt 0:01:08]} Red8 {[%emt 0:01:10]} 26. Rxd8+ {[%emt 0:01:34]} Rxd8 {[%emt 0:00:05]} 27. g3 {[%emt 0:00:07]} Nd5 $1 {[%emt 0:00:55]} 28. Nd3 {[%emt 0:02:13]} Nb6 {[%emt 0:08:01]} 29. a5 {[%emt 0:03:30]} Rxd3 {[%emt 0:08:17]} 30. axb6 {[%emt 0:00:05]} Rb3 {[%emt 0:00:25]} 31. Rc8+ {[%emt 0:00:05]} Kg7 {[%emt 0:00:04]} 32. Rc7+ {[%emt 0:00:08] Double Attack} Kh6 {[%emt 0:00:07]} 33. Rxb7 {[%emt 0:00:06]} Rxb2 {[%emt 0:00:08]} 34. h4 {[%emt 0:00:44]} g5 {[%emt 0:01:20]} 35. hxg5+ {[%emt 0:02:31]} Kxg5 {[%emt 0:00:05]} 36. Rb8 {[%emt 0:00:06]} Kh6 {[%emt 0:04:46]} 37. b7 {[%emt 0:01:06]} a5 {[%emt 0:00:14]} 38. Ra8 {[%emt 0:03:33]} Rxb7 {[%emt 0:00:09]} 39. Rxa5 {[%emt 0:00:04]} Kg6 {[%emt 0:01:41]} 40. Kg2 {[%emt 0:00:00]} Re7 {[%emt 0:00:00]} 41. f4 {[%emt 0:01:09]} Kf6 {[%emt 0:02:28]} 42. Re5 {[%emt 0:00:04]} Ra7 {[%emt 0:04:11]} 43. Kh3 {[%emt 0:00:23]} Ra3 {[%emt 0:04:06]} 44. Kg4 {[%emt 0:00:16]} h6 {[%emt 0:02:54]} 45. Rb5 {[%emt 0:00:09]} Rd3 {[%emt 0:03:25]} 46. Rb8 {[%emt 0:02:36]} Kg7 {[%emt 0:02:25]} 47. Kh4 {[%emt 0:00:30]} Rd4 {[%emt 0:00:55]} 48. Rb7+ {[%emt 0:00:30]} Kg6 {[%emt 0:00:49]} 49. Rb6 {[%emt 0:00:34]} Re4 {[%emt 0:01:09]} 50. Kg4 {[%emt 0:00:53]} h5+ {[%emt 0:04:45]} 51. Kh3 {[%emt 0:02:03]} Re2 {[%emt 0:02:54]} 52. Rb5 {[%emt 0:01:16]} Kh6 {[%emt 0:03:33]} 53. Rb8 {[%emt 0:03:03]} Kg6 {[%emt 0:00:51]} 54. Rg8+ {[%emt 0:01:25]} Kh6 {[%emt 0:00:36]} 55. Rg5 {[%emt 0:00:21]} Re1 {[%emt 0:00:15]} 56. Kg2 {[%emt 0:00:31]} Re2+ {[%emt 0:01:28]} 57. Kf3 {[%emt 0:00:09]} Re1 {[%emt 0:00:05]} 58. Rg8 {[%emt 0:00:33]} Kh7 {[%emt 0:01:15]} 59. Rd8 {[%emt 0:00:26]} Kg6 {[%emt 0:00:49]} 60. Rd4 {[%emt 0:00:21]} Kf5 {[%emt 0:00:45]} 61. Kf2 {[%emt 0:03:50]} Ra1 {[%emt 0:00:56]} 62. Rd8 {[%emt 0:01:07]} Ra2+ {[%emt 0:00:33]} 63. Kf3 {[%emt 0:00:07]} Ra3+ {[%emt 0:00:07]} 64. Kg2 {[%emt 0:00:12]} Re3 {[%emt 0:00:41]} 65. Rg8 {[%emt 0:00:23]} Re2+ {[%emt 0:01:40]} 66. Kh3 {[%emt 0:01:34]} h4 {[%emt 0:01:45]} 67. Rg5+ {[%emt 0:01:46]} Kf6 {[%emt 0:00:39]} 68. Kxh4 {[%emt 0:00:06]} Re4 {[%emt 0:00:53]} 69. Kg4 {[%emt 0:01:38]} Re3 {[%emt 0:00:25]} 70. Rh5 {[%emt 0:01:12]} Re1 {[%emt 0:00:35]} 71. Rh6+ {[%emt 0:00:09]} Kf7 {[%emt 0:00:30]} 72. Kg5 {[%emt 0:01:28]} Re3 {[%emt 0:00:59]} 73. g4 {[%emt 0:00:08]} Ra3 {[%emt 0:00:13]} 74. Rh7+ {[%emt 0:00:48]} Kg8 {[%emt 0:00:10]} 75. Re7 {[%emt 0:00:25]} Ra6 {[%emt 0:00:20]} 76. Kf6 {[%emt 0:00:22]} Ra4 {[%emt 0:00:24]} 77. Ke5 $18 {[%emt 0:00:49]} (77. Kg6 $142 Kf8 78. Rxe6 Ra7 79. g5 Ra2 80. f5 Rc2 81. f6 Rf2 82. Ra6) 77... Ra1 {[%emt 0:00:57]} 78. Kxe6 {[%emt 0:00:25]} Re1+ {[%emt 0:00:19]} 79. Kf6 {[%emt 0:00:04]} Ra1 {[%emt 0:00:50]} 80. f5 {[%emt 0:00:07]} Ra6+ {[%emt 0:00:10]} 81. Re6 {[%emt 0:00:04]} Ra8 {[%emt 0:00:26]} 82. Kg6 {[%emt 0:00:34]} Kf8 {[%emt 0:00:29]} 83. g5 {[%emt 0:00:16]} Ra7 {[%emt 0:00:07]} 84. f6 {[%emt 0:00:19]} Rd7 {[%emt 0:00:58]} 85. Re7 {[%emt 0:00:14]} Rd6 {[%emt 0:00:13]} 86. Rg7 {[%emt 0:00:22]} Rd3 {[%emt 0:00:46]} 87. Ra7 {[%emt 0:00:20]} Ke8 {[%emt 0:00:24]} 88. f7+ {[%emt 0:00:13]} 1-0

[Event "12th Maria Albulet Memorial 2019"]
[Site "Braila"]
[Date "2019.10.08"]
[Round "8.8"]
[White "Mihailova, Alina"]
[Black "Maria, Lia-Alexandra"]
[Result "1-0"]
[ECO "A40"]
[WhiteElo "1770"]
[BlackElo "1602"]
[Annotator "NA RC"]
[PlyCount "77"]
[EventDate "2019.10.02"]
[EventType "swiss"]
[EventCountry "ROU"]
[SourceTitle "playchess.com"]
[Source "ChessBase"]
[SourceQuality "1"]
[TimeControl "40/5400+30:900+30"]

1. d4 {[%emt 0:00:00]} Nf6 {[%emt 0:00:00]} 2. c4 {[%emt 0:00:00]} e6 {[%emt 0:00:00]} 3. g3 {[%emt 0:00:00]} c5 {[%emt 0:00:11]} 4. Nf3 {[%emt 0:00:16]} b6 {[%emt 0:10:02]} 5. Bg2 {[%emt 0:06:40]} Bb7 {[%emt 0:01:16]} 6. O-O {[%emt 0:00:10]} cxd4 {[%emt 0:03:29]} 7. Nxd4 {[%emt 0:01:13]} Bxg2 {[%emt 0:01:20]} 8. Kxg2 {[%emt 0:00:04]} Bc5 {[%emt 0:02:51]} 9. Nb5 {[%emt 0:04:00]} O-O {[%emt 0:01:54]} 10. Bf4 {[%emt 0:00:42]} Nc6 {[%emt 0:05:04]} 11. a3 {[%emt 0:02:28]} e5 {[%emt 0:18:15]} 12. Bg5 {[%emt 0:01:13]} h6 {[%emt 0:10:31]} 13. Bxf6 {[%emt 0:01:52]} Qxf6 {[%emt 0:00:08]} 14. N1c3 {[%emt 0:00:23]} Nd4 {[%emt 0:07:59]} 15. Nc7 {[%emt 0:05:46]} Rac8 {[%emt 0:04:01]} 16. N7d5 {[%emt 0:00:37]} Qc6 {[%emt 0:01:40]} 17. e3 {[%emt 0:01:53]} Nf5 {[%emt 0:01:19]} 18. Ne4 {[%emt 0:21:10]} Rfe8 {[%emt 0:02:58]} 19. b4 {[%emt 0:09:56]} Bf8 {[%emt 0:04:21]} 20. Rc1 {[%emt 0:00:42]} Qg6 {[%emt 0:02:31]} 21. Nd2 {[%emt 0:03:56]} a5 {[%emt 0:03:44]} 22. Qa4 {[%emt 0:01:43]} Ra8 {[%emt 0:02:50]} 23. e4 {[%emt 0:11:04]} Nh4+ {[%emt 0:04:37]} 24. Kh1 {[%emt 0:00:31]} axb4 {[%emt 0:01:26]} 25. Qd1 {[%emt 0:01:48]} Rxa3 {[%emt 0:03:01]} 26. gxh4 {[%emt 0:01:20]} Rea8 {[%emt 0:01:16]} 27. Rg1 {[%emt 0:00:53]} Qd6 {[%emt 0:00:59]} 28. Qg4 {[%emt 0:02:15]} Ra2 {[%emt 0:00:59]} 29. Rcd1 {[%emt 0:03:48]} b3 {[%emt 0:00:41]} 30. Qf5 {[%emt 0:01:14]} Kh8 {[%emt 0:01:14]} 31. Qxf7 {[%emt 0:02:59]} b2 {[%emt 0:00:21]} 32. Rg6 {[%emt 0:00:33]} Ra1 {[%emt 0:02:14]} 33. Nb1 {[%emt 0:02:05]} Rxb1 {[%emt 0:00:38]} 34. Rxb1 {[%emt 0:00:07]} Ra1 {[%emt 0:00:04]} 35. Rgg1 {[%emt 0:01:49]} Qa3 {[%emt 0:00:42]} 36. Qf5 {[%emt 0:03:57]} Rxb1 {[%emt 0:00:58]} 37. Rxb1 {[%emt 0:00:11]} Qa1 {[%emt 0:00:05]} 38. Qxf8+ {[%emt 0:00:08]} Kh7 {[%emt 0:00:06]} 39. Nc3 {[%emt 0:00:39]} 1-0

[Event "12th Maria Albulet Memorial 2019"]
[Site "Braila"]
[Date "2019.10.09"]
[Round "9.6"]
[White "Paraschiv, Petronela-Alexandra"]
[Black "Bucur, Denisa-Andreea"]
[Result "0-1"]
[ECO "B53"]
[WhiteElo "1829"]
[BlackElo "1888"]
[Annotator "NA RC"]
[PlyCount "58"]
[EventDate "2019.10.02"]
[EventType "swiss"]
[EventCountry "ROU"]
[SourceTitle "playchess.com"]
[Source "ChessBase"]
[SourceQuality "1"]
[TimeControl "40/5400+30:900+30"]

{[%evp 24,57,26,24,26,20,79,45,60,12,27,0,12,0,0,-13,5,-34,-3,-47,-47,-122,-197,-143,-201,-602,-637,-1367,-1410,-1199,-1535,-2258,-2212,-4057,-6968,-29990]} 1. e4 {[%emt 0:00:00]} c5 {[%emt 0:00:00]} 2. Nf3 {[%emt 0:00:04]} d6 {[%emt 0:00:00]} 3. d4 {[%emt 0:00:39]} cxd4 {[%emt 0:00:00]} 4. Qxd4 {[%emt 0:00:08]} Nf6 {[%emt 0:00:00]} 5. Bg5 {[%emt 0:00:42]} Nc6 {[%emt 0:00:00]} 6. Bb5 {[%emt 0:00:20]} Bd7 {[%emt 0:00:06]} 7. Bxc6 {[%emt 0:00:08]} Bxc6 {[%emt 0:00:04]} 8. Nc3 {[%emt 0:00:55]} e6 {[%emt 0:00:30]} 9. O-O-O {[%emt 0:01:22]} Be7 {[%emt 0:00:16]} 10. Kb1 {[%emt 0:01:42]} O-O {[%emt 0:01:03]} 11. Rhe1 {[%emt 0:01:16]} Qa5 {[%emt 0:05:59]} 12. Qd2 {[%emt 0:03:13]} Qb6 {[%emt 0:03:13]} 13. Nd4 {[%emt 0:02:27] B53: Sicilian: 2...d6: Lines with Qxd4} a6 {[%emt 0:13:36]} (13... Rfd8 14. g4 Rac8 15. f3 Be8 16. Nd5 Nxd5 17. exd5 Bxg5 18. Qxg5 Qc5 19. Qc1 e5 20. Nf5 Rd7 {½-½ (31) Cao,S (2548)-Acs,P (2522) Hungary 2007}) 14. f3 {[%emt 0:02:38]} Rac8 {[%emt 0:02:55]} 15. g4 {[%emt 0:05:06]} Rfe8 {[%emt 0:00:50]} 16. Be3 $146 {[%emt 0:07:59]} (16. h4 $14) ({Predecessor:} 16. Nce2 Qc7 17. Ng3 b5 18. h4 Bb7 19. Rc1 Qc4 20. Nh5 Nxh5 21. gxh5 {1-0 (39) Andersson,J (2117)-Madebrink,L (2247) Sweden 2010}) 16... Qc7 {[%emt 0:00:12]} 17. h4 {[%emt 0:00:58]} Nd7 {[%emt 0:00:32]} 18. g5 {[%emt 0:01:10]} Ne5 {[%emt 0:01:29]} 19. f4 {[%emt 0:05:48]} Nc4 {[%emt 0:00:20]} 20. Qf2 {[%emt 0:01:09]} b5 {[%emt 0:03:10]} 21. a3 {[%emt 0:26:33]} Ba8 {[%emt 0:03:00]} 22. Bd2 {[%emt 0:03:22] [#]} (22. Rd3 $1 $15) 22... d5 $1 {[%emt 0:09:36]} 23. e5 {[%emt 0:04:03]} Bxa3 $1 {[%emt 0:02:22]} 24. Ncxb5 $2 {[%emt 0:02:18]} (24. bxa3 $17 Nxa3+ 25. Kb2) 24... axb5 {[%emt 0:00:42]} 25. Nxb5 {[%emt 0:00:19]} Qb7 {[%emt 0:00:18]} 26. b3 {[%emt 0:01:16]} Qxb5 {[%emt 0:00:09]} 27. Re2 {[%emt 0:01:45]} Bc5 {[%emt 0:02:16]} 28. Qe1 {[%emt 0:01:01]} Na3+ {[%emt 0:00:16]} 29. Kb2 {[%emt 0:00:43]} Nxc2 {[%emt 0:00:06]} 0-1

[Event "12th Maria Albulet Memorial 2019"]
[Site "Braila"]
[Date "2019.10.09"]
[Round "9.7"]
[White "Pitigoi, Sabina-Andreea"]
[Black "Didiliuc, Dariana-Gabriela"]
[Result "0-1"]
[ECO "D31"]
[WhiteElo "1490"]
[BlackElo "1798"]
[Annotator "NA RC"]
[PlyCount "121"]
[EventDate "2019.10.02"]
[EventType "swiss"]
[EventCountry "ROU"]
[SourceTitle "playchess.com"]
[Source "ChessBase"]
[SourceQuality "1"]
[TimeControl "40/5400+30:900+30"]

1. d4 {[%emt 0:00:00]} d5 {[%emt 0:00:03]} 2. c4 {[%emt 0:00:02]} e6 {[%emt 0:00:06]} 3. Nc3 {[%emt 0:00:08]} c6 {[%emt 0:00:25]} 4. cxd5 {[%emt 0:00:39]} exd5 {[%emt 0:00:14]} 5. Nf3 {[%emt 0:00:26]} Nf6 {[%emt 0:00:27]} 6. Bf4 {[%emt 0:00:58]} Bd6 {[%emt 0:01:36]} 7. Bxd6 {[%emt 0:00:55]} Qxd6 {[%emt 0:00:06]} 8. e3 {[%emt 0:00:21]} Bf5 {[%emt 0:00:20]} 9. Bd3 {[%emt 0:01:02]} Bxd3 {[%emt 0:00:37]} 10. Qxd3 {[%emt 0:00:06]} Nbd7 {[%emt 0:00:21]} 11. O-O {[%emt 0:00:30]} O-O {[%emt 0:01:50]} 12. Rfe1 {[%emt 0:01:06]} Rfe8 {[%emt 0:00:20]} 13. e4 {[%emt 0:01:28]} dxe4 {[%emt 0:00:24]} 14. Nxe4 {[%emt 0:00:07]} Nxe4 {[%emt 0:00:17]} 15. Rxe4 {[%emt 0:00:06]} Rxe4 {[%emt 0:00:34]} 16. Qxe4 {[%emt 0:00:05]} Nf6 {[%emt 0:00:12]} 17. Qe5 {[%emt 0:03:25]} Qb4 {[%emt 0:00:45]} 18. Rb1 {[%emt 0:03:43]} Re8 {[%emt 0:00:38]} 19. Qc5 {[%emt 0:06:06]} Qa4 {[%emt 0:02:18]} 20. a3 {[%emt 0:15:00]} Re2 {[%emt 0:10:53]} 21. b3 {[%emt 0:01:27]} Qa6 {[%emt 0:00:48]} 22. Qc4 {[%emt 0:01:11]} Qxc4 {[%emt 0:04:24]} 23. bxc4 Re7 24. Re1 {[%emt 0:02:26]} Rxe1+ {[%emt 0:01:38]} 25. Nxe1 {[%emt 0:00:06]} Ne4 {[%emt 0:00:03]} 26. Nd3 {[%emt 0:04:53]} Nd6 {[%emt 0:01:12]} 27. Nb2 {[%emt 0:00:56]} b5 {[%emt 0:10:28]} 28. d5 {[%emt 0:10:35]} bxc4 {[%emt 0:01:20]} 29. dxc6 {[%emt 0:00:06]} c3 {[%emt 0:00:06]} 30. Nd3 {[%emt 0:00:12]} c2 {[%emt 0:00:15]} 31. c7 {[%emt 0:00:26]} Kf8 {[%emt 0:00:03]} 32. Kf1 {[%emt 0:00:16]} Ke7 {[%emt 0:00:11]} 33. Ke2 {[%emt 0:00:21]} Kd7 {[%emt 0:01:04]} 34. Kd2 {[%emt 0:01:47]} Nc4+ {[%emt 0:00:25]} 35. Kxc2 {[%emt 0:00:09]} Nxa3+ {[%emt 0:00:13]} 36. Kb3 {[%emt 0:00:05]} Nb5 {[%emt 0:00:36]} 37. Ne5+ {[%emt 0:00:07]} Kxc7 {[%emt 0:00:05]} 38. Nxf7 {[%emt 0:00:09]} h6 {[%emt 0:03:57]} 39. Ne5 {[%emt 0:02:27]} Kd6 {[%emt 0:04:01]} 40. Nc4+ {[%emt 0:00:00]} Kd5 {[%emt 0:00:00]} 41. Ne3+ {[%emt 0:07:02]} Ke4 {[%emt 0:01:41]} 42. Kb4 {[%emt 0:03:39]} Nd4 {[%emt 0:03:30]} 43. Kc4 {[%emt 0:02:30]} h5 {[%emt 0:08:34]} 44. Nf1 {[%emt 0:05:39]} Nf5 {[%emt 0:02:10]} 45. Nd2+ {[%emt 0:05:06]} Kf4 {[%emt 0:00:36]} 46. h3 {[%emt 0:00:39]} Ke5 {[%emt 0:05:01]} 47. Nf3+ {[%emt 0:01:43]} Ke4 {[%emt 0:01:09]} 48. Nd2+ {[%emt 0:00:30]} Kf4 {[%emt 0:00:06]} 49. Kb5 {[%emt 0:02:28]} Nd6+ {[%emt 0:04:09]} 50. Ka6 {[%emt 0:05:45]} Ne4 {[%emt 0:00:07]} 51. Nf1 {[%emt 0:00:05]} Nxf2 {[%emt 0:00:37]} 52. Kxa7 {[%emt 0:04:12]} Nd1 {[%emt 0:00:34]} 53. g4 h4 {[%emt 0:00:29]} 54. Kb6 {[%emt 0:13:21]} Nf2 55. Kc5 {[%emt 0:02:13]} Nxh3 {[%emt 0:00:36]} 56. Kd4 {[%emt 0:00:09]} g5 {[%emt 0:00:29]} 57. Ne3 {[%emt 0:01:52]} Nf2 {[%emt 0:00:12]} 58. Ng2+ {[%emt 0:00:31]} Kxg4 {[%emt 0:00:11]} 59. Ke3 {[%emt 0:00:29]} Kg3 {[%emt 0:00:20]} 60. Ne1 {[%emt 0:00:49]} h3 {[%emt 0:00:47]} 61. Kd4 0-1

[Event "12th Maria Albulet Memorial 2019"]
[Site "Braila"]
[Date "2019.10.09"]
[Round "9.8"]
[White "Maria, Lia-Alexandra"]
[Black "Verbin, Valentina"]
[Result "1/2-1/2"]
[ECO "B90"]
[WhiteElo "1602"]
[BlackElo "2076"]
[Annotator "NA RC"]
[PlyCount "101"]
[EventDate "2019.10.02"]
[EventType "swiss"]
[EventCountry "ROU"]
[SourceTitle "playchess.com"]
[Source "ChessBase"]
[SourceQuality "1"]
[TimeControl "40/5400+30:900+30"]

{[%evp 17,98,29,85,73,51,49,58,37,50,66,25,22,34,8,7,11,2,-13,-18,-27,47,99,74,58,184,55,39,40,67,0,458,52,33,63,52,56,422,289,427,154,224,133,167,0,368,367,389,107,93,87,83,75,84,54,53,50,235,120,111,98,130,119,102,32767,32767,32767,130,79,133,0,177,201,206,242,241,256,247,32767,32767,32767,32767,32767,91]} 1. e4 {[%emt 0:00:00]} c5 {[%emt 0:00:00]} 2. Nf3 {[%emt 0:00:00]} d6 {[%emt 0:00:00]} 3. d4 {[%emt 0:00:00]} cxd4 {[%emt 0:00:00]} 4. Nxd4 {[%emt 0:00:00]} Nf6 {[%emt 0:00:00]} 5. Nc3 {[%emt 0:00:01]} a6 {[%emt 0:00:00]} ({Predecessor:} 5... e6 6. Be3 {0-1 (34) Eickhoff,H (2190)-Lunkmoss,G Germany 1996}) 6. Be3 {[%emt 0:00:18]} e6 {[%emt 0:00:17]} 7. g4 {[%emt 0:01:48]} h6 {[%emt 0:00:15]} 8. Rg1 {[%emt 0:02:20]} Nc6 {[%emt 0:00:37]} 9. h4 {[%emt 0:24:41] B81: Sicilian Scheveningen: Keres Attack} d5 $146 {[%emt 0:06:15]} (9... h5 10. gxh5 Rxh5 11. Bg5 Rh8 12. Be2 Bd7 13. Qd2 Qb6 14. Nb3 Qc7 15. O-O-O b5 16. a3 Rb8 {½-½ (49) Bacrot,E (2697)-Ivanchuk,V (2726) Berlin 2015}) 10. exd5 {[%emt 0:07:09]} Nxd5 {[%emt 0:00:11]} 11. Nxd5 {[%emt 0:03:05]} Qxd5 {[%emt 0:00:51]} 12. Bg2 {[%emt 0:03:12]} Qa5+ $1 {[%emt 0:01:31]} 13. c3 {[%emt 0:02:31]} Bd7 {[%emt 0:04:30]} 14. Qb3 {[%emt 0:04:08]} Qc7 {[%emt 0:03:36]} 15. O-O-O {[%emt 0:03:35]} Na5 {[%emt 0:01:00]} 16. Qc2 {[%emt 0:00:57]} Nc4 {[%emt 0:00:25]} 17. Rge1 {[%emt 0:02:22]} Be7 {[%emt 0:05:37]} 18. Kb1 {[%emt 0:05:31]} Rc8 {[%emt 0:03:46]} ({Better is} 18... Bxh4 $11 19. Bc1 O-O-O) 19. Bc1 {[%emt 0:01:29]} b5 $1 {[%emt 0:03:25]} 20. g5 {[%emt 0:03:10]} b4 {[%emt 0:10:25] [#]} ({Black should try} 20... hxg5 $14 21. hxg5 b4) 21. g6 {[%emt 0:03:04]} (21. gxh6 $1 $18 Rxh6 22. Bxh6 gxh6 23. cxb4) 21... bxc3 {[%emt 0:00:18]} 22. gxf7+ {[%emt 0:00:58]} Kf8 {[%emt 0:00:16]} 23. b3 {[%emt 0:02:35]} ({Reject} 23. Qxc3 e5 $11) (23. bxc3 $14 e5 24. Nb3) 23... Qb6 $2 {[%emt 0:04:02]} (23... e5 $14) 24. Qg6 $2 {[%emt 0:03:22]} (24. Bh3 $18 Nd2+ 25. Bxd2 cxd2 26. Qxd2) 24... Nd2+ {[%emt 0:10:21]} 25. Bxd2 {[%emt 0:01:59]} Qxd4 {[%emt 0:00:58]} 26. Be3 {[%emt 0:00:46] Pin} Qb4 $2 {[%emt 0:02:16]} (26... Qxd1+ $14 27. Rxd1 c2+ 28. Qxc2 Rxc2 29. Kxc2 Bc8) 27. Qc2 {[%emt 0:01:09]} Bb5 {[%emt 0:01:27]} (27... Bc6 {was necessary.} 28. Bxc6 Rxc6) 28. Rd4 $2 {[%emt 0:01:46]} (28. Bh3 $18 {and White stays clearly on top.} Bf6 29. Bxe6) 28... Qa3 $1 $11 {[%emt 0:01:19]} 29. Bc1 {[%emt 0:01:05]} (29. Bf4 $18) 29... Qc5 {[%emt 0:00:20]} 30. Be3 {[%emt 0:01:22]} (30. Rf4 $16) 30... Qf5 $2 {[%emt 0:03:47] [#]} 31. Be4 $1 {[%emt 0:01:50]} Qf6 {[%emt 0:03:12]} ({Of course not} 31... Qxf7 32. Bg6) 32. Red1 $2 {[%emt 0:04:57]} (32. Bg6 $18 {and White stays clearly on top.}) 32... e5 {[%emt 0:04:28]} ({Don't go for} 32... Qxf7 $2 33. Bg6 $18) 33. Rd5 {[%emt 0:02:19]} Bc6 $1 {[%emt 0:01:05]} 34. Qxc3 {[%emt 0:03:16]} Bb7 {[%emt 0:01:15]} 35. Qd3 {[%emt 0:01:18]} Bxd5 {[%emt 0:00:38]} 36. Bxd5 {[%emt 0:00:22]} g6 $2 {[%emt 0:04:18] [#]} ({Black should play} 36... h5 $14) 37. Rg1 {[%emt 0:02:02]} (37. f4 $1 $18 {[%cal Rf4e5] is the precise move to win.} Rd8 38. fxe5) 37... Rd8 {[%emt 0:00:47]} 38. Rxg6 {[%emt 0:01:02]} Rxd5 {[%emt 0:15:08] [#]} 39. Rg8+ $1 {[%emt 0:03:34] Decoy} Rxg8 {[%emt 0:00:37]} 40. fxg8=Q+ {[%emt 0:00:00]} Kxg8 {[%emt 0:00:00]} 41. Qxd5+ {[%emt 0:00:32]} Kg7 {[%emt 0:05:42]} 42. Kc2 {[%emt 0:03:30]} (42. Qb7 $142) 42... Qf5+ {[%emt 0:00:24]} 43. Kb2 {[%emt 0:02:13]} (43. Kd2 $16) 43... Bf6 $2 {[%emt 0:02:01]} (43... Bxh4 $11 44. Qb7+ Kg6) 44. Qb7+ {[%emt 0:01:13]} Kg6 {[%emt 0:00:05]} 45. Qxa6 {[%emt 0:01:17]} e4+ {[%emt 0:00:15]} 46. Kc1 {[%emt 0:04:26]} Qe5 {[%emt 0:00:20]} 47. Qc4 {[%emt 0:01:50]} Qa1+ {[%emt 0:01:08]} 48. Kc2 {[%emt 0:00:37]} Qxa2+ 49. Kd1 {[%emt 0:00:15]} Qb1+ $16 {[%emt 0:04:18]} 50. Kd2 Qb2+ 51. Kd1 1/2-1/2